bitfinex/quotes_SOLUSD_20230116
["timestamp","ask_amount","ask_price","bid_price","bid_amount"]
[1673853419685,20.0,24.517,24.495,20.0]
[1673853419902,20.0,24.517,24.496,17.0]
[1673853420341,20.0,24.515,24.496,17.0]
[1673853420739,41.46196354,24.515,24.496,17.0]
[1673853421676,20.0,24.515,24.496,17.0]
[1673853422437,20.0,24.517,24.496,17.0]
[1673853422849,131.6242,24.518,24.498,20.0]
[1673853422850,111.6242,24.518,24.498,20.0]
[1673853423052,111.6242,24.518,24.499,17.0]
[1673853423258,20.0,24.53,24.501,20.0]
[1673853423474,111.517,24.539,24.502,17.0]
[1673853423683,111.517,24.539,24.503,40.0]
[1673853423890,111.517,24.539,24.504,17.0]
[1673853424109,111.517,24.539,24.505,20.0]
[1673853424312,20.0,24.542,24.51,19.11]
[1673853424525,20.0,24.542,24.511,37.0]
[1673853424746,20.0,24.542,24.512,20.0]
[1673853424954,20.0,24.542,24.513,37.0]
[1673853425260,41.46196354,24.542,24.513,37.0]
[1673853425473,20.0,24.542,24.514,20.0]
[1673853425685,20.0,24.542,24.515,37.0]
[1673853425892,20.0,24.543,24.516,20.0]
[1673853426113,111.517,24.548,24.517,37.0]
[1673853426517,112.2323,24.57,24.517,50.21881834]
[1673853426727,20.0,24.569,24.518,33.21881834]
[1673853427048,20.0,24.558,24.52,38.99]
[1673853427257,20.0,24.558,24.521,37.0]
[1673853427467,41.46196354,24.556,24.522,20.0]
[1673853427792,41.46196354,24.556,24.523,37.0]
[1673853428010,41.46196354,24.556,24.523,20.0]
[1673853428201,41.46196354,24.556,24.519,20.0]
[1673853428411,20.0,24.554,24.52,20.0]
[1673853428745,20.0,24.554,24.521,20.0]
[1673853428746,41.46196354,24.554,24.521,20.0]
[1673853428933,41.46196354,24.554,24.522,20.0]
[1673853429156,41.46196354,24.554,24.524,20.0]
[1673853429364,20.0,24.554,24.525,37.0]
[1673853429785,20.0,24.554,24.526,20.0]
[1673853430014,20.0,24.554,24.527,17.0]
[1673853430227,20.0,24.556,24.528,20.0]
[1673853430414,20.0,24.556,24.529,37.0]
[1673853430626,21.46196354,24.563,24.529,37.0]
[1673853430837,21.46196354,24.563,24.53,20.0]
[1673853431069,20.0,24.556,24.531,17.0]
[1673853431378,20.0,24.556,24.532,20.0]
[1673853431596,20.0,24.556,24.534,20.0]
[1673853431798,20.0,24.562,24.535,20.0]
[1673853432008,20.0,24.562,24.536,20.0]
[1673853432224,20.0,24.562,24.537,20.0]
[1673853432427,20.0,24.562,24.539,20.0]
[1673853432628,112.2323,24.57,24.54,17.0]
[1673853432839,112.2323,24.57,24.541,20.0]
[1673853433056,112.2323,24.57,24.542,17.0]
[1673853433274,112.2323,24.57,24.543,20.0]
[1673853433485,20.0,24.569,24.544,17.0]
[1673853433677,20.0,24.569,24.545,20.0]
[1673853433887,20.0,24.569,24.546,17.0]
[1673853434324,21.46196354,24.568,24.547,20.0]
[1673853434522,21.46196354,24.568,24.548,17.0]
[1673853434740,112.2323,24.57,24.549,20.0]
[1673853435054,112.2323,24.57,24.551,20.0]
[1673853435267,18.98,24.59,24.552,20.0]
[1673853435472,114.3557,24.595,24.553,17.0]
[1673853435675,114.3557,24.595,24.554,40.0]
[1673853435676,20.4929748,24.594,24.554,40.0]
[1673853435879,20.4929748,24.594,24.555,17.0]
[1673853436090,20.0,24.582,24.557,20.0]
[1673853436304,20.0,24.582,24.558,37.0]
[1673853436944,41.46196354,24.582,24.558,37.0]
[1673853437168,19.11,24.58,24.541,20.0]
[1673853437358,20.0,24.579,24.53,18.98]
[1673853437570,20.0,24.578,24.53,18.98]
[1673853437786,20.0,24.577,24.53,18.98]
[1673853437996,21.46196354,24.578,24.541,20.0]
[1673853438207,20.0,24.582,24.541,20.0]
[1673853438622,18.98,24.58,24.541,20.0]
[1673853438950,20.0,24.582,24.541,20.0]
[1673853439181,20.0,24.582,24.542,13.21881834]
[1673853439490,20.0,24.582,24.543,20.0]
[1673853439674,21.46196354,24.581,24.543,20.0]
[1673853440106,19.11,24.6,24.55,18.93]
[1673853440420,21.46196354,24.59,24.561,20.0]
[1673853440642,0.4929748,24.594,24.562,37.0]
[1673853440946,0.4929748,24.594,24.571,20.0]
[1673853441164,0.4929748,24.594,24.572,37.0]
[1673853441351,0.4929748,24.594,24.573,20.0]
[1673853441562,0.4929748,24.594,24.575,20.0]
[1673853441768,0.4929748,24.594,24.576,20.0]
[1673853441994,0.4929748,24.594,24.578,20.0]
[1673853442213,0.4929748,24.594,24.579,20.0]
[1673853442424,0.4929748,24.594,24.58,17.0]
[1673853442945,21.95493834,24.594,24.576,16.272562]
[1673853443260,20.0,24.593,24.576,16.272562]
[1673853443662,21.46196354,24.592,24.576,16.272562]
[1673853443998,20.0,24.591,24.576,16.272562]
[1673853444926,41.46196354,24.591,24.576,16.272562]
[1673853446196,20.0,24.59,24.576,16.272562]
[1673853446407,20.0,24.589,24.576,16.272562]
[1673853446940,20.0,24.589,24.577,17.0]
[1673853447355,41.46196354,24.589,24.577,17.0]
[1673853447676,20.0,24.589,24.577,17.0]
[1673853448076,21.46196354,24.588,24.577,17.0]
[1673853448304,20.0,24.589,24.577,17.0]
[1673853448617,20.0,24.589,24.576,16.272562]
[1673853448814,20.0,24.587,24.576,16.272562]
[1673853449026,147.6,24.587,24.542,139.7136]
[1673853449234,19.11,24.58,24.542,20.0]
[1673853449445,20.0,24.579,24.542,20.0]
[1673853449986,92.19120366,24.578,24.538,20.0]
[1673853450190,19.11,24.57,24.525,108.4261]
[1673853450397,20.0,24.568,24.543,16.297639]
[1673853450718,20.0,24.567,24.543,16.297639]
[1673853450914,18.98,24.56,24.51,18.98]
[1673853451126,19.11,24.55,24.51,18.98]
[1673853451459,19.11,24.55,24.511,20.0]
[1673853451776,72.19120366,24.549,24.511,20.0]
[1673853451965,50.72924012,24.549,24.512,11.7184303]
[1673853452175,20.0,24.548,24.513,20.0]
[1673853452497,49.44035261,24.547,24.511,16.306952]
[1673853452699,18.98,24.54,24.511,16.306952]
[1673853452909,70.90231615,24.547,24.511,16.306952]
[1673853453243,20.0,24.548,24.511,16.306952]
[1673853453764,118.6366,24.549,24.512,11.7184303]
[1673853454167,20.0,24.548,24.513,20.0]
[1673853454607,20.0,24.548,24.514,31.7184303]
[1673853454807,20.0,24.548,24.516,20.0]
[1673853455012,36.42443165,24.547,24.517,20.0]
[1673853455237,36.42443165,24.547,24.513,20.0]
[1673853455459,41.46196354,24.546,24.513,20.0]
[1673853455863,21.46196354,24.545,24.513,20.0]
[1673853456183,21.46196354,24.545,24.512,20.0]
[1673853456383,20.0,24.544,24.512,20.0]
[1673853456593,138.5713,24.544,24.512,31.7184303]
[1673853457013,118.5713,24.544,24.512,31.7184303]
[1673853457220,118.5713,24.544,24.51,18.93]
[1673853457442,20.0,24.543,24.513,11.7184303]
[1673853457632,41.46196354,24.543,24.513,11.7184303]
[1673853457846,20.0,24.543,24.515,20.0]
[1673853458078,20.0,24.543,24.516,20.0]
[1673853458284,20.0,24.543,24.517,20.0]
[1673853458602,20.0,24.543,24.517,31.7184303]
[1673853458791,118.5713,24.544,24.518,48.7184303]
[1673853459002,118.5713,24.544,24.519,20.0]
[1673853459212,118.5713,24.544,24.521,20.0]
[1673853459421,147.6,24.578,24.522,37.0]
[1673853459651,108.4201,24.564,24.522,48.7184303]
[1673853459856,129.88206354,24.564,24.523,11.7184303]
[1673853460050,20.0,24.556,24.525,20.0]
[1673853460263,108.4201,24.564,24.526,20.0]
[1673853460475,20.0,24.563,24.527,37.0]
[1673853460694,20.0,24.563,24.529,20.0]
[1673853460919,20.0,24.563,24.53,37.0]
[1673853461229,108.4201,24.564,24.531,20.0]
[1673853461437,20.0,24.563,24.533,20.0]
[1673853461628,20.0,24.563,24.534,37.0]
[1673853461839,20.0,24.556,24.535,17.0]
[1673853462046,20.0,24.556,24.536,20.0]
[1673853462263,20.0,24.556,24.537,17.0]
[1673853462472,20.0,24.563,24.537,17.0]
[1673853462683,20.0,24.563,24.538,20.0]
[1673853462892,20.0,24.563,24.54,20.0]
[1673853463109,20.0,24.563,24.541,17.0]
[1673853463426,20.0,24.563,24.542,20.0]
[1673853463635,20.0,24.563,24.543,17.0]
[1673853464606,41.46196354,24.563,24.543,17.0]
[1673853465007,20.0,24.566,24.544,20.0]
[1673853465323,20.0,24.566,24.545,17.0]
[1673853466385,20.0,24.566,24.518,20.0]
[1673853466386,20.0,24.566,24.52,19.11]
[1673853466701,19.11,24.56,24.521,119.2625]
[1673853466913,20.0,24.558,24.522,20.0]
[1673853467129,20.0,24.557,24.522,20.0]
[1673853467437,20.0,24.556,24.522,20.0]
[1673853467626,41.46196354,24.556,24.522,20.0]
[1673853467832,20.0,24.556,24.523,10.38902022]
[1673853468047,112.9957,24.557,24.524,20.0]
[1673853468487,112.9957,24.557,24.525,37.77804044]
[1673853468697,20.0,24.556,24.526,40.0]
[1673853468911,20.0,24.556,24.528,20.0]
[1673853469097,112.9957,24.557,24.53,20.0]
[1673853469309,112.9957,24.557,24.531,20.0]
[1673853469522,112.9957,24.557,24.532,20.0]
[1673853469945,20.0,24.569,24.533,27.38902022]
[1673853470264,119.3506,24.57,24.541,20.0]
[1673853470473,119.3506,24.57,24.542,17.0]
[1673853470795,20.0,24.578,24.543,20.0]
[1673853471013,20.0,24.578,24.545,20.0]
[1673853471220,20.0,24.578,24.546,20.0]
[1673853471412,20.0,24.582,24.546,20.0]
[1673853471413,20.0,24.582,24.55,18.93]
[1673853471626,20.0,24.585,24.551,37.0]
[1673853471844,19.11,24.6,24.551,37.0]
[1673853472058,119.8304,24.608,24.56,19.11]
[1673853472271,119.8304,24.608,24.561,57.0]
[1673853472468,20.0,24.595,24.561,77.77804044]
[1673853472677,119.8304,24.608,24.562,10.38902022]
[1673853473006,119.8304,24.608,24.563,17.0]
[1673853473203,20.0,24.607,24.565,20.0]
[1673853473408,20.0,24.607,24.57,19.11]
[1673853473628,20.0,24.607,24.571,17.0]
[1673853473825,20.0,24.607,24.58,18.98]
[1673853474174,20.0,24.607,24.582,20.0]
[1673853474387,20.0,24.607,24.583,37.0]
[1673853474687,119.8304,24.621,24.583,47.38902022]
[1673853474876,20.0,24.62,24.584,20.0]
[1673853475087,20.0,24.62,24.586,20.0]
[1673853475315,81.363756,24.611,24.588,20.0]
[1673853475506,81.363756,24.611,24.59,19.11]
[1673853475718,81.363756,24.611,24.591,20.0]
[1673853475950,81.363756,24.611,24.592,20.0]
[1673853476149,81.363756,24.611,24.592,30.38902022]
[1673853476366,81.363756,24.611,24.593,30.38902022]
[1673853476697,81.363756,24.611,24.6,19.11]
[1673853477082,81.363756,24.611,24.601,20.0]
[1673853477534,20.0,24.61,24.602,17.0]
[1673853477840,81.363756,24.611,24.602,17.0]
[1673853478974,20.0,24.61,24.601,20.0]
[1673853479309,20.0,24.61,24.591,20.0]
[1673853479503,41.46196354,24.61,24.581,20.0]
[1673853479713,114.1467,24.609,24.581,30.38902022]
[1673853479938,114.1467,24.609,24.59,18.98]
[1673853480344,81.363756,24.611,24.59,29.36902022]
[1673853480776,81.363756,24.611,24.591,20.0]
[1673853480981,81.363756,24.611,24.592,20.0]
[1673853481190,81.363756,24.611,24.593,17.0]
[1673853481408,81.363756,24.611,24.595,20.0]
[1673853481725,81.363756,24.611,24.597,20.0]
[1673853481948,81.363756,24.611,24.598,17.0]
[1673853482134,19.08,24.67,24.6,95.38]
[1673853482342,114.9392,24.656,24.62,19.11]
[1673853482555,20.0,24.647,24.621,35.0]
[1673853483300,20.0,24.655,24.623,20.0]
[1673853483709,20.0,24.655,24.624,9.7993579]
[1673853484351,20.0,24.655,24.625,20.0]
[1673853484553,20.0,24.655,24.626,20.0]
[1673853484765,20.0,24.655,24.627,20.0]
[1673853484972,20.0,24.655,24.628,20.0]
[1673853485185,20.0,24.655,24.629,20.0]
[1673853485827,20.0,24.655,24.623,20.0]
[1673853486039,20.0,24.655,24.623,29.7993579]
[1673853486238,20.0,24.655,24.629,9.7993579]
[1673853486449,20.0,24.655,24.624,20.0]
[1673853486655,20.0,24.655,24.625,29.7993579]
[1673853486862,20.0,24.655,24.625,9.7993579]
[1673853487082,20.0,24.655,24.626,9.7993579]
[1673853488121,20.0,24.655,24.63,19.11]
[1673853488336,20.0,24.655,24.631,20.0]
[1673853488546,20.0,24.655,24.631,9.7993579]
[1673853488754,20.0,24.655,24.632,29.7993579]
[1673853488977,20.0,24.655,24.624,35.91304182]
[1673853489215,20.0,24.655,24.62,18.95]
[1673853489380,20.0,24.655,24.625,9.7993579]
[1673853489923,41.46196354,24.655,24.62,18.95]
[1673853490337,41.46196354,24.655,24.616,9.7993579]
[1673853490542,20.0,24.655,24.62,9.7993579]
[1673853490756,20.0,24.655,24.62,28.9093579]
[1673853490970,20.0,24.655,24.621,20.0]
[1673853491165,21.46196354,24.654,24.62,19.11]
[1673853491375,20.0,24.653,24.62,9.7993579]
[1673853491702,20.0,24.653,24.621,20.0]
[1673853492026,20.0,24.653,24.622,29.7993579]
[1673853492230,20.0,24.652,24.621,20.0]
[1673853492546,20.0,24.652,24.619,9.7993579]
[1673853492868,20.0,24.653,24.622,9.7993579]
[1673853493097,20.0,24.652,24.62,20.0]
[1673853493286,20.0,24.651,24.62,20.0]
[1673853493501,20.0,24.65,24.611,29.7993579]
[1673853493712,20.0,24.649,24.611,29.7993579]
[1673853493944,41.46196354,24.649,24.611,29.7993579]
[1673853494256,41.46196354,24.648,24.6,19.05]
[1673853494463,175.48886354,24.648,24.603,19.5987158]
[1673853494655,18.97,24.63,24.59,19.05]
[1673853494866,20.0,24.629,24.59,19.05]
[1673853495075,41.46196354,24.629,24.59,19.05]
[1673853495306,21.46196354,24.628,24.59,19.05]
[1673853495527,37.0,24.627,24.59,19.05]
[1673853495702,37.0,24.627,24.584,20.0]
[1673853495703,20.0,24.627,24.584,20.0]
[1673853495916,21.46196354,24.626,24.584,20.0]
[1673853496356,20.0,24.624,24.58,19.03]
[1673853496665,20.0,24.619,24.57,19.11]
[1673853496881,20.0,24.619,24.571,20.0]
[1673853496882,17.0,24.618,24.571,20.0]
[1673853497065,20.0,24.617,24.571,20.0]
[1673853497276,17.0,24.616,24.571,20.0]
[1673853497492,20.0,24.615,24.571,20.0]
[1673853497806,41.46196354,24.615,24.571,20.0]
[1673853498018,20.0,24.613,24.571,20.0]
[1673853498439,42.92392708,24.612,24.571,20.0]
[1673853498657,20.0,24.611,24.571,20.0]
[1673853498872,35.98,24.61,24.565,114.331]
[1673853499082,20.0,24.609,24.56,19.11]
[1673853499286,20.0,24.609,24.555,118.0185]
[1673853499287,19.11,24.6,24.555,118.0185]
[1673853499501,130.7251,24.599,24.555,118.0185]
[1673853499818,20.0,24.598,24.556,20.0]
[1673853500028,90.25988319,24.598,24.556,20.0]
[1673853500221,48.79791965,24.597,24.56,19.11]
[1673853500429,21.46196354,24.597,24.56,19.11]
[1673853500644,110.7251,24.599,24.553,9.24306527]
[1673853500645,75.06826878,24.596,24.553,9.24306527]
[1673853500867,20.0,24.589,24.542,20.0]
[1673853501400,21.46196354,24.588,24.542,20.0]
[1673853501604,20.0,24.587,24.542,20.0]
[1673853502008,20.0,24.585,24.542,20.0]
[1673853502535,80.75554986,24.584,24.542,20.0]
[1673853502740,20.0,24.583,24.54,19.18]
[1673853502950,20.0,24.583,24.532,20.0]
[1673853502951,19.11,24.58,24.532,20.0]
[1673853503162,20.0,24.579,24.532,20.0]
[1673853503373,20.0,24.577,24.532,20.0]
[1673853503801,129.1206,24.583,24.55,18.98]
[1673853503802,21.46196354,24.578,24.55,18.98]
[1673853504009,109.1206,24.583,24.55,18.98]
[1673853504231,109.1206,24.583,24.551,9.24306527]
[1673853504444,20.0,24.582,24.552,20.0]
[1673853504853,20.0,24.582,24.554,20.0]
[1673853505276,20.0,24.582,24.555,20.0]
[1673853505494,41.46196354,24.582,24.555,20.0]
[1673853505700,41.46196354,24.582,24.543,20.0]
[1673853505920,109.2647,24.581,24.55,9.24306527]
[1673853506130,109.2647,24.581,24.551,20.0]
[1673853506445,20.0,24.58,24.552,20.0]
[1673853506635,20.0,24.58,24.552,29.24306527]
[1673853506855,20.0,24.58,24.554,17.5]
[1673853507270,20.0,24.58,24.555,20.0]
[1673853508212,20.0,24.579,24.53,39.11]
[1673853508543,20.0,24.578,24.53,39.11]
[1673853508760,41.46196354,24.578,24.532,19.0]
[1673853509071,20.0,24.576,24.532,19.0]
[1673853509472,20.0,24.574,24.532,19.0]
[1673853509896,21.46196354,24.573,24.532,19.0]
[1673853510313,19.11,24.58,24.532,19.0]
[1673853510527,20.0,24.58,24.541,20.0]
[1673853510745,20.0,24.58,24.542,20.0]
[1673853510956,41.46196354,24.58,24.543,20.0]
[1673853511158,41.46196354,24.58,24.544,20.0]
[1673853511574,41.46196354,24.58,24.545,17.5]
[1673853511792,41.46196354,24.58,24.546,20.0]
[1673853512230,41.46196354,24.58,24.547,20.0]
[1673853512414,20.0,24.578,24.548,20.0]
[1673853512748,20.0,24.576,24.53,39.11]
[1673853513063,64.11712836,24.575,24.53,39.11]
[1673853513268,20.0,24.574,24.53,39.11]
[1673853513471,84.11712836,24.574,24.531,20.0]
[1673853513799,18.98,24.57,24.531,20.0]
[1673853513990,128.7916,24.57,24.525,20.0]
[1673853514209,62.65516482,24.569,24.525,20.0]
[1673853514419,20.0,24.568,24.525,20.0]
[1673853514740,41.46196354,24.568,24.525,20.0]
[1673853515053,20.0,24.566,24.525,20.0]
[1673853515483,21.46196354,24.565,24.528,17.0]
[1673853515803,20.0,24.564,24.529,20.0]
[1673853515989,20.0,24.564,24.531,20.0]
[1673853516409,41.46196354,24.564,24.531,20.0]
[1673853516647,41.46196354,24.564,24.525,20.0]
[1673853517055,20.0,24.564,24.525,20.0]
[1673853517587,21.46196354,24.563,24.52,19.17]
[1673853517782,20.0,24.559,24.516,20.0]
[1673853518202,21.46196354,24.558,24.516,20.0]
[1673853518430,116.382,24.557,24.516,20.0]
[1673853518658,20.0,24.556,24.521,17.5]
[1673853519362,116.382,24.557,24.521,17.5]
[1673853519576,116.382,24.557,24.523,20.0]
[1673853519785,116.382,24.557,24.524,20.0]
[1673853519997,116.382,24.557,24.524,37.0]
[1673853520312,116.382,24.557,24.53,19.05]
[1673853520525,116.382,24.557,24.532,20.0]
[1673853520738,109.8116,24.57,24.54,19.11]
[1673853520953,109.8116,24.57,24.541,17.0]
[1673853521154,109.8116,24.57,24.542,20.0]
[1673853521365,109.8116,24.57,24.543,17.0]
[1673853521575,109.8116,24.57,24.55,19.11]
[1673853521773,109.8116,24.57,24.552,20.0]
[1673853522197,109.8116,24.57,24.553,37.0]
[1673853522629,20.0,24.569,24.553,37.0]
[1673853522821,109.8116,24.57,24.553,37.0]
[1673853524297,20.0,24.569,24.553,37.0]
[1673853525044,20.0,24.569,24.541,20.0]
[1673853525254,20.0,24.569,24.542,20.0]
[1673853525460,20.0,24.569,24.541,20.0]
[1673853526291,20.0,24.569,24.535,20.0]
[1673853526707,20.0,24.569,24.53,19.11]
[1673853526920,155.79886354,24.568,24.524,118.4092]
[1673853527147,20.0,24.567,24.524,118.4092]
[1673853527351,41.46196354,24.567,24.524,118.4092]
[1673853527562,21.46196354,24.566,24.524,118.4092]
[1673853527777,20.0,24.565,24.524,118.4092]
[1673853528180,38.46196354,24.564,24.524,118.4092]
[1673853528392,38.46196354,24.564,24.521,17.5]
[1673853528725,20.0,24.559,24.512,20.0]
[1673853528923,17.0,24.558,24.513,118.4092]
[1673853529130,20.0,24.557,24.514,20.0]
[1673853529448,20.0,24.555,24.514,20.0]
[1673853530283,115.3685,24.554,24.514,20.0]
[1673853530510,20.0,24.553,24.514,20.0]
[1673853530922,20.0,24.553,24.513,118.4092]
[1673853531132,20.0,24.553,24.511,16.306952]
[1673853531133,18.88,24.55,24.511,16.306952]
[1673853531341,41.46196354,24.553,24.511,16.306952]
[1673853531342,18.88,24.54,24.511,16.306952]
[1673853531564,20.0,24.539,24.511,16.306952]
[1673853532393,41.46196354,24.539,24.511,16.306952]
[1673853532819,86.13291786,24.539,24.511,16.306952]
[1673853533028,64.67095432,24.539,24.511,16.306952]
[1673853533438,21.46196354,24.538,24.511,16.306952]
[1673853533642,64.67095432,24.539,24.511,16.306952]
[1673853533868,20.0,24.539,24.511,16.306952]
[1673853534931,20.0,24.539,24.512,20.0]
[1673853535123,41.46196354,24.539,24.512,19.401582]
[1673853535335,17.0,24.538,24.512,19.401582]
[1673853535544,17.0,24.538,24.511,16.306952]
[1673853535749,41.46196354,24.537,24.511,16.306952]
[1673853535961,17.0,24.536,24.511,16.306952]
[1673853536275,20.0,24.535,24.511,16.306952]
[1673853536488,20.0,24.533,24.511,16.306952]
[1673853537116,20.0,24.537,24.511,16.306952]
[1673853537326,20.0,24.539,24.513,20.0]
[1673853537542,20.0,24.539,24.514,37.0]
[1673853537855,18.84,24.56,24.515,20.0]
[1673853538182,21.46196354,24.546,24.516,37.0]
[1673853538392,135.7303,24.547,24.517,20.0]
[1673853538589,135.7303,24.547,24.518,17.0]
[1673853538800,20.0,24.547,24.52,20.0]
[1673853539019,20.0,24.547,24.521,37.0]
[1673853539229,20.0,24.547,24.522,20.0]
[1673853539437,20.0,24.547,24.523,17.0]
[1673853539643,20.0,24.543,24.524,20.0]
[1673853539847,20.0,24.543,24.521,20.0]
[1673853540069,20.0,24.547,24.521,20.0]
[1673853540271,20.0,24.547,24.514,20.0]
[1673853540486,20.0,24.547,24.515,20.0]
[1673853540805,20.0,24.547,24.517,20.0]
[1673853541017,20.0,24.543,24.519,20.0]
[1673853541227,20.0,24.547,24.52,20.0]
[1673853541425,128.6916,24.57,24.522,20.0]
[1673853541642,20.0,24.561,24.524,20.0]
[1673853541852,20.0,24.561,24.525,17.0]
[1673853542052,20.0,24.561,24.526,20.0]
[1673853542261,20.0,24.561,24.527,17.0]
[1673853542477,21.46196354,24.558,24.527,17.0]
[1673853542790,20.0,24.561,24.528,20.0]
[1673853543002,21.46196354,24.56,24.528,20.0]
[1673853543314,41.46196354,24.555,24.528,20.0]
[1673853543524,41.46196354,24.555,24.51,18.9]
[1673853544155,17.0,24.554,24.51,18.9]
[1673853544365,18.86,24.55,24.519,0.11072118]
[1673853544574,131.6227,24.549,24.519,0.11072118]
[1673853544780,20.0,24.548,24.519,0.11072118]
[1673853545119,20.0,24.546,24.519,0.11072118]
[1673853546906,20.0,24.544,24.519,0.11072118]
[1673853547092,20.0,24.543,24.519,0.11072118]
[1673853547303,37.0,24.542,24.519,0.11072118]
[1673853547525,147.6,24.541,24.5,18.9]
[1673853547733,147.6,24.541,24.48,19.09]
[1673853547734,18.9,24.53,24.48,19.09]
[1673853547932,18.9,24.53,24.482,108.2684]
[1673853548144,129.9308,24.529,24.482,108.2684]
[1673853548363,20.0,24.528,24.505,16.32702]
[1673853548573,20.0,24.527,24.505,16.32702]
[1673853548787,20.0,24.527,24.482,108.2684]
[1673853548788,20.0,24.525,24.482,108.2684]
[1673853548990,18.84,24.52,24.47,18.83]
[1673853549214,18.88,24.51,24.47,18.83]
[1673853549408,148.5214,24.509,24.463,20.0]
[1673853549944,51.10213427,24.508,24.463,20.0]
[1673853550152,51.10213427,24.508,24.483,16.335756]
[1673853550471,128.5214,24.509,24.483,16.335756]
[1673853550472,20.0,24.507,24.483,16.335756]
[1673853550874,128.5214,24.509,24.483,16.335756]
[1673853551089,108.5214,24.509,24.483,16.335756]
[1673853551615,20.0,24.508,24.483,16.335756]
[1673853551831,20.0,24.508,24.484,20.0]
[1673853552770,41.46196354,24.508,24.484,20.0]
[1673853553194,89.55471057,24.508,24.484,20.0]
[1673853553394,20.0,24.508,24.484,20.0]
[1673853554258,20.0,24.517,24.485,20.0]
[1673853554781,20.0,24.517,24.486,20.0]
[1673853555705,21.46196354,24.516,24.484,20.0]
[1673853555916,21.46196354,24.516,24.483,16.335756]
[1673853556148,20.0,24.515,24.483,16.335756]
[1673853556456,42.92392708,24.514,24.483,16.335756]
[1673853556669,20.0,24.513,24.483,16.335756]
[1673853557076,20.0,24.511,24.483,16.335756]
[1673853557928,20.0,24.509,24.483,16.335756]
[1673853558353,18.74,24.5,24.483,16.335756]
[1673853558862,20.0,24.498,24.483,16.335756]
[1673853559286,21.46196354,24.497,24.483,16.335756]
[1673853559503,20.0,24.496,24.483,16.335756]
[1673853559917,20.0,24.496,24.46,38.8]
[1673853560325,20.0,24.496,24.46,55.143159]
[1673853560957,20.0,24.496,24.46,35.143159]
[1673853561187,21.46196354,24.495,24.46,35.143159]
[1673853561398,108.1564,24.495,24.46,35.143159]
[1673853561600,20.0,24.494,24.461,20.0]
[1673853562011,41.46196354,24.494,24.461,20.0]
[1673853562223,41.46196354,24.494,24.46,16.343159]
[1673853562549,18.86,24.49,24.46,16.343159]
[1673853562756,57.0,24.489,24.46,16.343159]
[1673853562978,61.46196354,24.489,24.46,16.343159]